Workbook

Sheet Form Instructions
E2: Building Tune-up/System Optimization Application
E3: Dominion Energy South Carolina, Inc.
G4: Use Buttons Below to Navigate the Application
E6: Customer Information | H6: Project Information | K6: Requirements & Incentives | N6: Terms & Conditions
R10: ="Version # "&'Version Tracking'!B2 -> Version # 15.3
B12: Application and Instructions
B13: The Building Tune-Up and System Optimization Program is available to qualifying commercial and industrial customers within our service territory. The goal of this program is to help customers identify opportunities to improve the efficiency in their buildings and reduce energy costs without adversely affecting facility or system operations. For the Building Tune-Up Program, offerings are project-by-project funding incentives that cover a portion of a energy analysis study and implementation of pre-approved measures. For the System Optimization program, offerings are incentives for covering the implemantation of pre-approved measures that optimize existing equipment to run at maximum efficiency and save energy with incentives based on total estimated annual energy savings. Examples of System Optimization measures include returning equipment to its proper operational state, optimizing the operation of chiller and other mechanical equipment, and adjusting and correcting operating schedules for equipment. We may also provide incentives through other efficiency program offerings to the building owner to offset implementation costs for other recommended measures. Projects must be able to show specific and verifiable energy savings and costs, typically developed by a third-party firm. Incentives will be determined by us on a project-by-project basis. EnergyWise for Your Business incentive payments are subject to project and customer eligibility and funds availability. For each program year (December 1–November 30), EnergyWise for Your Business incentive payments are capped per Customer Federal Tax ID number at $150,000 per project type. Throughout the duration of the EnergyWise for Your Business program, for Building Tune-Up program, incentive payments are limited to a one-time payment per facility that does not exceed $0.25/sf. The incentive payments are included in the calculation of the overall $150,000. Details of the program may change without prior notice.
B15: Eligible Participants | K15: Pre-Approval Requirements
B16: EnergyWise for Your Business is open to all non-residential electric customers within the our service territory, except for customers eligible for Rate 23 and specific large retail customers who have elected to opt out of the Demand Side Management (DSM) programs by notifying us in writing using the Opt-Out form. | K16: All Building Tune-Up and System Optimization projects require pre-approval prior to initiating a project. After the application has been pre-approved by us, the applicant will be notified in writing, assigned a project identification number, and given any specific instructions.
B19: Participation Instructions
B20: Please review the program Terms and Conditions tab for all program rules and requirements. Tabs colored Blue should be filled in by applicant.
B21: Step 1
C22: All Building Tune-Up and System Optimization applications require thorough and complete documentation for energy analysis and costs. Before beginning the application process, the customer or the contractor should check with an EnergyWise for Your Business representative to determine the eligibility of the proposed project and to establish requirements for detailed savings projections and cost estimates. This information must be submitted for review and evaluation of potential incentives.
B23: Step 2
C24: Applications will be processed and we will notify the customer in writing when the review is complete and funds have been reserved.
B25: Step 3
C26: Upon project completion, please return the signed customer acknowledgment at bottom of the pre-approval letter along with proof of purchase. Dominion Energy South Carolina will notify customers if an inspection of the facility is necessary prior to final payment processing. Proof of purchase must include an itemized invoice for all Energy Conservation Measures (ECMs) that may qualify for the EnergyWise for Your Business incentive. Each individual product or model number must include the corresponding costs and quantity. Labor and material must be listed separately when labor is included in the Overall Project Costs.
B27: Step 4
C28: Upon project completion, please return the signed customer acknowledgment at bottom of the pre-approval letter along with proof of purchase. Dominion Energy South Carolina will notify customers if an inspection of the facility is necessary prior to final payment processing. Proof of purchase must include an itemized invoice for all Energy Conservation Measures (ECMs) that may qualify for the EnergyWise for Your Business incentive. Each individual product or model number must include the corresponding costs and quantity. Labor and material must be listed separately when labor is included in the Overall Project Costs.
B31: Questions | C31: If you have questions, email EnergyExperts@SC.DominionEnergyAccount.com, | L31: visit www.DominionEnergy.com/ForYourBizSC or call 877-784-7234.

Sheet Customer Information
A1: Dominion Energy South Carolina, Inc. (Fill in Blue and Orange Cells Only!)
A2: PROJECT INFORMATION
A3: Application Date | K3: Expected Completion Date
A4: Company Name | C4: FALSE | K4: Electric Account #
A5: Street Address (of the facility) | C5: FALSE | K5: Customer Federal Tax ID
A6: City | C6: FALSE | K6: State | L6: SC | M6: Zip
A7: Building Type (select one) | C7: FALSE | K7: Please indicate "other" type:
A8: CUSTOMER CONTACT INFORMATION | C8: FALSE
A9: Mailing Address:
A10: (where all correspondence will be mailed, including incentive check if payment is to the customer)
A11: City | H11: State | K11: Zip
A12: Contact Person | K12: Title
A13: Telephone No. | K13: Email
A15: CONTRACTOR SERVICE PROVIDER INFORMATION
A16: Company Name
A17: Street Address
A18: City | H18: State | K18: Zip
A19: Contact Person | K19: Title
A20: Telephone No. | C20: FALSE | K20: Email
A22: Please indicate if the Customer or Contractor should be primary point of contact for this project:
A23: ADDITIONAL PRIMARY POINT OF CONTACT (IF APPLICABLE)
A24: Company Name
A25: Street Address
A26: City | H26: State | K26: Zip
A27: Contact Person | K27: Title
A28: Telephone No. | K28: Email
A30: PAYMENT INFORMATION
A31: Payment to:
A32: Federal Tax ID # (of recipient) | J32: Tax Status of Recipient (select one)
A33: Customer Name | K33: Title
A34: Customer Signature (if payment to contractor, Customer must type his/her name in the orange box to the right and check the box below) | K34: Date (XX/XX/XXXX)
A35: FALSE | B35: I understand and intend that my electronic, PDF or facsimile signature be accepted and have the same force and effect as an original signature.
A37: Checklist & Acknowledgement
A38: APPLICATION CHECKLIST
A39: For faster application processing, please include the following items with your application:
A40: Complete application: (Customer Information tab and Project Information tab). | Q40: FALSE
A41: Electric account number at top of page. Attach copy of electric bill. | Q41: FALSE
A42: The most recent IRS Form W-9 completed for payment recipient. Physical signature is required on the W-9 Form. If payment is to a contractor, both the customer's and the contractor's W-9 Forms must be provided. | Q42: FALSE
A43: Supporting documentation to include manufacturer’s specification (cut) sheets for equipment included in this application. | Q43: FALSE
A44: Customer signature and proof of purchase (contractor receipts), at time of project completion. See Terms and Conditions for invoicing requirements. | Q44: FALSE
A45: Applications submitted for processing will be processed in the order in which they are received. Applicants will be notified as to their pre-approval status and/or any pre-inspection requirements within 20 business days from receipt of complete application. Applicants will be notified if post-installation inspections are required.
A46: Dominion Energy South Carolina, Inc. Building Tune Up and System Optimization Application - Electronic Version | N46: Version | O46: ='Version Tracking'!B2 -> 15.3

Sheet Project Information
A1: Fill in Blue and Orange Cells Only!
A2: PROJECT TYPE
A3: Which incentive are you pursuing with this application?
A4: FACILITY INFORMATION
A5: Year of Construction: | F5: Number of Floors:
A6: Total Floor Area (sq. ft.): | F6: Total Conditioned Area (sq. ft.):
A7: Annual kWh Usage: | F7: Peak kW and Month Occuring:
A8: HVAC INFORMATION
A9: Check all of the HVAC system(s) in the facility.
A10: Cooling Systems | D10: Heating Systems | H10: Ventilaton & Distribution | P10: yes
A11: FALSE | B11: Chiller | D11: FALSE | E11: Boiler, Hot Water | H11: FALSE | I11: Central AHU
A12: FALSE | B12: Chiller Water Cooled | D12: FALSE | E12: Boiler Steam | H12: FALSE | I12: VAV and Reheat
A13: FALSE | B13: Water Source Heat Pump | D13: FALSE | E13: Rooftop Furnace | H13: FALSE | I13: Dual Duct
A14: FALSE | B14: Condenser | D14: FALSE | E14: Electric Baseboard | H14: FALSE | I14: Economizers
A15: FALSE | B15: Other | D15: FALSE | E15: Other | H15: FALSE | I15: Other
A16: FACILITY CONTROL SYSTEMS
A17: Age of Energy Management Controls System (EMCS) | G17: Capable of trending and storing multiple points?
A18: Components and systems controlled by digital direct controls (DDC):
A21: Components controlled (not actuated) by pneumatics:
A24: CUSTOMER ACKNOWLEDGMENT
A25: CUSTOMER ACKNOWLEDGMENT
A26: Authorized Representative | E26: Title
E27: Date (XX/XX/XXXX)
A28: FALSE | B28: By checking this box and typing my name, I hereby certify that all statements made on this application are correct to the best of my knowledge and that I have read and agree to the Terms and Conditions. Furthermore, I understand and intend that my electronic, PDF or facsimile signature be accepted and have the same force and effect as an original signature. Note: Upon completion of project, Dominion Energy South Carolina, Inc. customer of record must sign and return the written pre-approval letter and provide invoices for all energy efficiency measures.
A29: Building Tune Up and System Optimization Application - Electronic Version | J29: ="Version # "&'Version Tracking'!B2 -> Version # 15.3

Sheet Building Tune Up Input (hidden)
F2: Building Tune Up Program Measure Qualification Tool
G3: Version # 15.1 | K3: Date: | L3: 2012-02-29
C4: Copyright © 2011 ICF Resources, LLC, All Rights Reserved. Do not copy, distribute or quote without ICF’s written permission.
B6: General Project Information | G6: SCE&G Project Number:
B7: Project Name: | G7: Customer Name:
B8: Project Type: | G8: Project Address:
B9: ASHRAE Level 1 Cost: | G9: Project City:
B10: ASHRAE Level 2 Cost: | G10: Customer Contact: | K10: Title:
B11: Implementation Cost: | G11: Phone: | J11: Email:
B12: Building SF: | G12: Electric Account No: | K12: SCE&G Rate:
B14: Building Tune Up | F14: Step Completed | G14: Incentive Rate per Step (per SF) | H14: Incentives
B16: ASHRAE Level 1 Audit | H16: =IF(F16="Yes",G16*$D$12,0) -> 0
B17: ASHRAE Level 2 Audit | H17: =G17*$D$12 -> 0
B18: All Measures Implemented Under 18 months SPB | H18: 0
B19: Total SF Based Potential Incentive | H19: =SUM(H16:H18) -> 0
B20: 75% of Audit Cost | H20: =0.75*SUM(D9:F11) -> 0
B21: Final Incentive | H21: =MIN(H19:H20) -> 0
B25: NOTES:

Sheet System Optimization Input (hidden)
F2: System Optimization Program Measure Qualification Tool
G3: Version # 15.1 | K3: Date: | L3: 2012-02-29
C4: Copyright © 2011 ICF Resources, LLC, All Rights Reserved. Do not copy, distribute or quote without ICF’s written permission.
B6: General Project Information | G6: SCE&G Project Number:
B7: Project Name: | G7: Customer Name:
B8: Project Type: | G8: Project Address:
B9: Building SF: | G9: Project City:
G10: Customer Contact: | K10: Title:
G11: Phone: | J11: Email:
G12: Electric Account No: | K12: SCE&G Rate:
H14: Project Costs
B15: System Optimization Name | F15: kWh Savings | G15: Winter Peak kW Savings | H15: Material Cost | I15: Labor Cost | J15: Potential Incentive
A17: 1 | B17: Measure 1 | J17: =MIN(F17*Lookups!$C$17,SUM(H17:I17)*Lookups!$C$18) -> 0
A18: 2 | B18: Measure 2 | J18: =MIN(F18*Lookups!$C$17,SUM(H18:I18)*Lookups!$C$18) -> 0
A19: 3 | B19: Measure 3 | J19: =MIN(F19*Lookups!$C$17,SUM(H19:I19)*Lookups!$C$18) -> 0
A20: 4 | B20: Measure 4 | J20: =MIN(F20*Lookups!$C$17,SUM(H20:I20)*Lookups!$C$18) -> 0
A21: 5 | B21: Measure 5 | J21: =MIN(F21*Lookups!$C$17,SUM(H21:I21)*Lookups!$C$18) -> 0
A22: 6 | B22: Measure 6 | J22: =MIN(F22*Lookups!$C$17,SUM(H22:I22)*Lookups!$C$18) -> 0
A23: 7 | B23: Measure 7 | J23: =MIN(F23*Lookups!$C$17,SUM(H23:I23)*Lookups!$C$18) -> 0
A24: 8 | B24: Measure 8 | J24: =MIN(F24*Lookups!$C$17,SUM(H24:I24)*Lookups!$C$18) -> 0
B25: Total | F25: =SUM(F17:F24) -> 0 | G25: =SUM(G17:G24) -> 0 | H25: 0 | I25: 0 | J25: =MIN(150000,SUM(J17:J24)) -> 0
B28: NOTES:

Sheet Lookups (hidden)
B2: Rates | C2: Base or Off Peak kWh | D2: High Sum kWh | E2: High Win kWh | F2: High Avg kWh | G2: AVG kWh | H2: Sum Demand (kVA) | I2: Win Demand (kVA) | J2: AVG Demand Value (kW @ 0.9 PF)
B3: 3 - Muni | C3: 0.11131 | G3: =C3 -> 0.11131 | H3: 0 | J3: =H3 -> 0
B4: 9 - GS | D4: 0.12707 | E4: 0.13533 | F4: =(D4/3)+(2*E4/3) -> 0.1325766667 | G4: =F4 -> 0.1325766667 | H4: 4.05 | I4: 0 | J4: =H4*0.85 -> 3.4425
B5: 14 - Farm Serv | D5: 0.13966 | E5: 0.1535 | F5: 0.1488866667 | G5: =F5 -> 0.1488866667 | H5: 0 | J5: =H5 -> 0
B6: 16 - GS TOU | C6: 0.11964 | D6: 0.21349 | E6: 0.21349 | F6: 0.21349 | G6: =AVERAGE(F6,C6) -> 0.166565 | H6: 0 | I6: 0 | J6: =((H6/3)+(2*I6/3))*0.9 -> 0
B7: 20 - Med GS | D7: 0.05339 | E7: 0.05044 | F7: 0.05142333333 | G7: =AVERAGE(F7,C7) -> 0.05142333333 | H7: 19.5 | J7: =H7*0.85 -> 16.575
B8: 21 - GS TOU | C8: 0.05072 | D8: 0.08518 | E8: 0.08518 | F8: 0.08518 | G8: =AVERAGE(F8,C8) -> 0.06795 | H8: 20.3 | I8: 20.3 | J8: =((H8/3)+(2*I8/3))*0.9 -> 18.27
B9: 21A - Exp GS TOU | C9: 0.04086 | D9: 0.07739 | E9: 0.05095 | F9: 0.05976333333 | G9: =AVERAGE(F9,C9) -> 0.05031166667 | H9: 21.16 | I9: 12.69 | J9: =((H9/3)+(2*I9/3))*0.9 -> 13.962
B10: 22 - School | D10: 0.1115 | E10: 0.13523 | F10: 0.12732 | G10: =AVERAGE(F10,C10) -> 0.12732 | H10: 0 | J10: =H10 -> 0
B11: 23 - Industrial | C11: 0.04902 | G11: =C11 -> 0.04902 | J11: 15.05
B12: 24 - Lrg GS | C12: 0.04458 | D12: 0.08911 | E12: 0.08911 | F12: =(D12/3)+(2*E12/3) -> 0.08911 | G12: =AVERAGE(F12,C12) -> 0.066845 | H12: 16.79 | I12: 16.79 | J12: =((H12/3)+(2*I12/3)) -> 16.79
B17: Incentive Rate | C17: 0.1 | D17: /kWh
B18: Project Cap SO | C18: 0.75

Sheet Sheet1 (hidden)

Sheet ProjectInfo Validation (hidden)
A1: Building Type | B1: Primary Contact | C1: Tax Status | D1: Payment To | E1: Cities | G1: Project Type
A2: Convenience/C-store | B2: Customer | C2: Corporation | D2: Customer | E2: Adams Run | G2: Building Tune-Up
A3: Fitness/Recreation | B3: Contractor | C3: LLC | D3: Contractor | E3: Aiken | G3: System Optimization
A4: Grocery | B4: Other (fill out below) | C4: Partnership | E4: Allendale
A5: Health Facility | C5: Individual Propiertorship | E5: Arlington Estates
A6: Industrial | C6: Not for Profit | E6: Awendaw
A7: Lodging | E7: Bamberg
A8: Multifamily | E8: Barnwell
A9: Office | E9: Batesburg Leesville
A10: Religious Facility | E10: Bath
A11: Restaurant | E11: Beaufort
A12: Retail | E12: Beech Island
A13: School (K-12) | E13: Blackville
A14: School (University/College) | E14: Blair
A15: Warehouse | E15: Bluffton
A16: Other | E16: Blythewood
E17: Bowman
E18: Branchville
E19: Brunson
E20: Calhoun Falls
E21: Cameron
E22: Canadys
E23: Carlisle
E24: Cayce
E25: Chapin
E26: Chappels
E27: Charleston
E28: Childs
E29: Clarks Hill
E30: Columbia
E31: Coosawatchie
E32: Cope
E33: Cottageville
E34: Cross
E35: Cross Roads
E36: Daniel Island
E37: Daufuskie Island
E38: Denmark
E39: Dorchester
E40: Early Branch
E41: East Lake Hills
E42: Eastover
E43: Edgefield
E44: Edisto Island
E45: Ehrhardt
E46: Elgin
E47: Elko
E48: Elloree
E49: Estill
E50: Eutawville
E51: Fairfax
E52: Folly Beach
E53: Fort Motte
E54: Furman
E55: Garnett
E56: Gaston
E57: Gifford
E58: Gilbert
E59: Gloverville
E60: Goose Creek
E61: Graniteville
E62: Grays Hill
E63: Green Pond
E64: Hampton
E65: Hanahan
E66: Hardeeville
E67: Harleyville
E68: Hilda
E69: Holly Hill
E70: Hollywood
E71: Hopkins
E72: Irmo
E73: Isle of Palms
E74: Jackson
E75: Jacksonboro
E76: James Island
E77: Jenkinsville
E78: Johns Island
E79: Johnston
E80: Ladson
E81: Ladys Island
E82: Langley
E83: Leesville
E84: Lexington
E85: Lincolnville
E86: Little Mountain
E87: Livingston
E88: Lobeco
E89: Lodge
E90: Lugoff
E91: Luray
E92: Martin
E93: Mc Clellanville
E94: Mc Cormick
E95: Modoc
E96: Moncks Corner
E97: Monetta
E98: Montmorenci
E99: Mount Carmel
E100: Mount Pleasant
E101: Muphys Estates
E102: Newberry
E103: North
E104: North Augusta
E105: North Charleston
E106: Northeast
E107: Norway
E108: Oakridge
E109: Okatie
E110: Olar
E111: Olympia
E112: Orangeburg
E113: Parksville
E114: Peak
E115: Pelion
E116: Perry
E117: Pineland
E118: Pomaria
E119: Pontiac
E120: Port Royal
E121: Prosperity
E122: Ravenel
E123: Reevesville
E124: Ridge Spring
E125: Ridgeland
E126: Ridgeville
E127: Ridgeway
E128: Rosewood
E129: Round O
E130: Rowesville
E131: Ruffin
E132: Saint George
E133: Saint Helena Island
E134: Saluda
E135: Santee
E136: Scotia
E137: Seabrook
E138: Sheldon
E139: Sieglers Crossroads
E140: Smoaks
E141: Springfield
E142: State Park
E143: Sullivans Island
E144: Summerville
E145: Swansea
E146: Sycamore
E147: Tillman
E148: Trenton
E149: Troy
E150: Ulmer
E151: Union
E152: University Park
E153: Vance
E154: Varnville
E155: Vaucluse
E156: Wagener
E157: Walterboro
E158: Ward
E159: Warrenville
E160: West Columbia
E161: White Hall
E162: White Rock
E163: Wildwood
E164: Williams
E165: Williston
E166: Windsor
E167: Winnsboro
E168: Yemassee

Sheet Terms and Conditions
A1: Dominion Energy South Carolina, Inc.
A2: Terms and Conditions
D5: .
B8: ="Version # "&'Version Tracking'!B2 -> Version # 15.3

Sheet Requirements & Incentives
A1: Dominion Energy South Carolina, Inc.
A2: TECHNICAL REQUIREMENTS & INCENTIVES
E3: Jump To:
D4: System Optimization | E4: 0 | F4: Building Tune-Up
A6: System Optimization
A7: Optimize your existing equipment to run at maximum efficiency and save energy with incentives based on total estimated annual energy savings. Examples of System Optimization options include returning equipment to its proper operational state, optimizing the operation of chiller and other mechanical equipment, and adjusting and correcting operating schedules for equipment.
A8: System Optimization projects may qualify for up to $150,000 under the Custom Project type each program year, not to exceed 75% of total project costs. Individual equipment can only be considered for optimization incentives once every three years.
B10: Measure Description | C10: Incentive/Unit | D10: Requirements
B11: System Optimization | C11: $0.10/kWh saved in the first 12 months after the project is completed; Up to 75% of the total project costs | D11: • Test-in and test-out measurements and inspections are required. Fields for measurements can be determined on an individual project basis working with the Program Team*
D12: • Incentives are based on verifiable energy savings calculation and cannot be based on assumed percent reductions
D13: • Project incentives will be determined by Dominion Energy South Carolina program staff after the application is submitted
B16: *Projects plans must be submitted prior to work being started in order to determine program test-in measurements and any required inspections to be completed.
A17: Eligible projects must involve the optimization of equipment that meets the following criteria
A18: • | B18: Produces a measurable and verifiable reduction in electricity consumption
A19: • | B19: Achieve savings through equipment maintenance, re-commissioning or operational changes, without an equipment upgrade
A20: • | B20: Equipment must be at least 2 years old
A21: • | B21: Required two-year commitment on any revised scheduling change or revised practice
A23: Measures that are not eligible for the program incentive include those that
A24: • | B24: Involve relocating existing equipment or processes outside of Dominion Energy South Carolina’s service territory
A25: • | B25: Produce an electric energy reduction through substitution of another energy source for electricity
A26: • | B26: Are eligible for an incentive through any other energy efficiency program offered by Dominion Energy South Carolina
A27: This program offers incentives for a variety of System Optimization applications, including but not limited to
A28: • | B28: Modifying control systems programming
A29: • | B29: Lighting on/off switching with rewiring
A30: • | B30: Ventilation changes: cleaning and replacing filters, tightening or replacing belt drives on fans, eliminating duct leakage
A31: • | B31: Space cooling: repairing or addition of chilled water pipe insulation and HVAC Tune-Ups**
A32: • | B32: Space heating: reducing thermostat set points for unoccupied periods and repairing / modifying controls on electric space heaters
A33: • | B33: Eliminating simultaneous heating and cooling
A34: • | B34: Implement Demand Control Ventilation
A35: • | B35: Water heating: reducing thermostat set points
A36: • | B36: Multiple End Uses: Modifying EMS scheduling, assigning new points as necessary, calibrating / replacing sensors
A37: System Optimization Service Providers must notify the program team before submitting a project.
A38: • | B38: Each Contractor must speak with a Program engineer on staff before their first project is submitted and must provide a list of measures offered and the assumptions used for capturing electric usage savings.
A39: • | B39: When a System Optimization Contractor offers a new measure or a new calculation for savings they must discuss the change and/or calculation with a Program engineer.
A40: All projects must comply with the Terms & Conditions. Additional program rules are available at www.DominionEnergy.com/ForYourBizSC For System Optimization projects, one must apply for preapproval prior to making improvements. New equipment purchases and upgrades may be eligible for incentives under the EnergyWise for Your Business.
B41: **HVAC Tune-Ups cannot be a stand-alone measure and must be completed along with other System Optimization measure(s).
A42: Step 1 - Application Phase
B43: Before beginning the application process, the customer or energy professional should contact an EnergyWise representative to discuss the application process, project eligibility, and the customer’s need for System Optimization services. A completed Building Tune-Up and System Optimization application and list of measures with energy savings calculations for System Optimization are then submitted to Dominion Energy South Carolina for review and pre-approval.
A44: Step 2 - Implementation Phase
B45: In the Implementation Phase, the customer and/or energy professional implements the system optimization measures identified and pre-approved for incentive monies. We will provide $0.10/kWh saved in the first 12 months after the project is completed and contribute up to 75% of the cost of the implementation of the pre-approved measures. The customer or energy professional shall document energy savings achievements. The customer will notify us upon completion of the project. We will perform an on-site inspection to ensure the System Optimization measures' energy savings are being realized. Proof of purchase must include an itemized invoice for all Energy Conservation Measures (ECMs) that may qualify for the EnergyWise for Your Business incentive. Each individual product or model number must include the corresponding costs and quantity. After a thorough review of all documentation, final project approval is issued, and the incentive will be processed.
A47: Building Tune-Up
A48: The criteria for participation in the Building Tune-Up program are:
A49: • | B49: High electric use intensity (per the EPA Portfolio manager or similar standard).
A50: • | B50: Building is over 2 years old (this requirement recognizes that buildings less than 2 years old may not have the requisite full year of utility data that reflect a “fully occupied" building and consistent operating pattern).
A51: • | B51: Building has an Energy Management System (EMS).
A52: • | B52: Mechanical equipment in relatively good condition (i.e. not near end of useful life).
A53: • | B53: Demonstrated management commitment to implement low-/no-cost measures.
A54: • | B54: Storage and warehouse facilities, unless designated as "Cold Storage," are not eligible for the program. If a building has had a Building Tune-Up in the last three years, the building is not eligible for Building Tune-Up incentives.
A56: Step 1 - Application Phase
B57: Before beginning the application process, the customer and Certified Energy Auditor, qualified engineer (Building Tune-Up Service Provider-BTSP) or energy professional should contact an EnergyWise representative to discuss the application process, project eligibility, and the customer’s need for Building Tune-Up services. A preliminary walk through is conducted by the BTSP, and an initial benchmarking report referred to as an opportunity checklist is completed. A completed Building Tune-Up and System Optimization application and opportunity checklist is then submitted to Dominion Energy South Carolina for review. We will evaluate the application and determine if the project should move forward to the study phase.
A58: Step 2 - Study Phase
B59: Once we provide pre-approval of the Building Tune-Up and System Optimization application, the BTSP will conduct a more detailed walk-through assessment, quantify Building Tune-Up opportunities and develop a master list of findings. The BTSP will aggregate this information into an action plan. The proposed Building Tune-Up measures detailed in the action plan will be reviewed with the customer and Dominion Energy South Carolina. Upon final agreement of the action plan, the customer and BTSP will move forward to the Implementation Phase. If the study phase does not identify viable no cost/low cost measures, the customer will receive $.05/square foot, to assist with cost of the study phase.
A60: Step 3 - Implementation Phase
B61: In the Implementation Phase, the customer and/or BTSP implements the Building Tune-Up measures identified in the Action Plan. Customer are encouraged to implement identified measures with a payback ≤ 1.5 years and are required to match our contribution for implementation of these measures. We will contribute up to 75% of the cost of the assessment and implementation of low-cost measures. The BTSP shall document savings achievements. The customer will notify us upon completion of the project. We will perform an on-site inspection to ensure the action plan was followed and energy savings are being realized. Proof of purchase must include an itemized invoice for all Energy Conservation Measures (ECMs) that may qualify for the EnergyWise for Your Business incentive. Each individual product or model number must include the corresponding costs and quantity. After a thorough review of all documentation, final project approval is issued, and the incentive will be processed.
A62: Building Tune-Up Pre-Application Survey
A63: Are you willing to commit up to $0.25/sf for your share of study and measure implementation? | W63: FALSE | AK63: FALSE
A64: Are you able to complete the installation of identified Building Tune-up measures within six months of receiving an action plan? (Incentives may be foregone and/or the full Building Tune-Up service cost incurred to date may be imposed on the customer for non-implementation of measures). | W64: FALSE | AK64: FALSE
A65: Are you willing to commit the necessary time and personnel resources to fully support the Building Tune-Up process? | W65: FALSE | AK65: FALSE
A66: Are you free from planned major system renovations or retrofits? | W66: FALSE | AK66: FALSE
H68: Version # | I68: ='Version Tracking'!B2 -> 15.3

Sheet Version Tracking (hidden)
A2: current | B2: =LOOKUP(2,1/(B1:B50001<>""),B1:B50001) -> 15.3
B3: Version | C3: Notes | D3: Date | E3: Updated By
B4: 1 | C4: Creation of Excel BT Application | D4: 2017-02-06 | E4: Joy Zins
B5: 1.1 | C5: Revised incentive language | D5: 2018-03-27 | E5: Rick Campana
B6: 10.1 | C6: Updated Dominion Branding and T&Cs | D6: 2020-08-28 | E6: JSE
B7: 10.2 | C7: Updated Eligibilty and T&Cs - 100K/project type | D7: 2021-02-03 | E7: JSE
B8: 10.4 | C8: Updated Eligibilty, T&Cs, invoice rqmts, & version numberfor ap syncing | D8: 2022-08-08 | E8: Liv Stewart
B9: 10.5 | C9: Updated email to dominionenergy.com | D9: 2023-09-13 | E9: JSE
B10: 14.1 | D10: 2023-11-15 | E10: TKJ
B11: 14.3 | C11: Updated email to EnergyExperts@SC.DominionEnergyAccount.com | D11: 2024-03-25 | E11: LS
B12: 15.1 | C12: Updated format and added Checkbox for System Optimization Changed review sheets and updated avoided costs. | D12: 2025-03-17 | E12: LS/Jon Eicher
B13: 15.3 | C13: Version Alignment | D13: 2025-09-16 | E13: LL
